bitfinex-derivatives/quotes_ETHF0:USTF0_20250708
["timestamp","ask_amount","ask_price","bid_price","bid_amount"]
[1752009232940,3.51507848,2607.3,2607.2,26.83298]
[1752009233242,3.51507848,2607.3,2607.2,27.50898]
[1752009233644,3.51507848,2607.3,2607.2,26.83298]
[1752009233845,3.51507848,2607.3,2607.2,27.50898]
[1752009240153,1.42660848,2607.3,2607.2,27.50898]
[1752009240340,2.19357848,2607.3,2607.2,28.56357017]
[1752009240545,2.85617848,2607.3,2607.2,28.56357017]
[1752009240746,2.85617848,2607.3,2607.2,27.79659017]
[1752009240950,2.85617848,2607.3,2607.2,26.742]
[1752009241150,2.85617848,2607.3,2607.2,27.50899]
[1752009241349,2.19357848,2607.3,2607.2,27.50899]
[1752009241850,2.85617848,2607.3,2607.2,27.50899]
[1752009242351,2.19357848,2607.3,2607.2,28.52139]
[1752009242847,2.85617848,2607.3,2607.2,27.50899]
[1752009243249,2.19357848,2607.3,2607.2,27.50899]
[1752009243649,2.08920848,2607.3,2607.2,27.50899]
[1752009243952,2.85616848,2607.3,2607.2,28.52139]
[1752009244354,1.42660848,2607.3,2607.2,28.52139]
[1752009244745,1.42660848,2607.3,2607.2,29.87199]
[1752009245351,0.76696,2607.4,2607.2,32.55608367]
[1752009245545,0.76694,2607.5,2607.3,4.26239017]
[1752009245750,7.41811408,2607.9,2607.5,1.91725]
[1752009245951,6.2989,2607.9,2607.8,1.82141017]
[1752009246247,6.2989,2607.9,2607.8,53.94141017]
[1752009246451,6.2989,2607.9,2607.8,54.61741017]
[1752009246854,6.2989,2607.9,2607.8,53.69684047]
[1752009247058,6.2989,2607.9,2607.8,52.31598592]
[1752009247355,2.0658,2607.9,2607.8,52.21954252]
[1752009247557,2.0658,2607.9,2607.8,51.45272252]
[1752009247751,3.0911,2607.9,2607.8,50.39813235]
[1752009248357,3.0911,2607.9,2607.8,51.16495235]
[1752009248955,2.0658,2607.9,2607.8,50.39813235]
[1752009249151,2.0658,2607.9,2607.8,51.16495235]
[1752009249454,2.0658,2607.9,2607.8,50.39813235]
[1752009249757,3.0911,2607.9,2607.8,51.16495235]
[1752009250060,2.3243,2607.9,2607.8,50.26841246]
[1752009250360,2.3243,2607.9,2607.8,47.27674993]
[1752009250557,2.3243,2607.9,2607.8,43.70897064]
[1752009250748,3.09112,2607.9,2607.8,42.26615064]
[1752009251357,4.48062,2607.9,2607.8,42.26615064]
[1752009253156,4.48062,2607.9,2607.8,39.02528823]
[1752009253558,4.48062,2607.9,2607.8,39.70128823]
[1752009253755,4.48062,2607.9,2607.8,39.02528823]
[1752009253963,4.48062,2607.9,2607.8,37.20831662]
[1752009255059,4.48062,2607.9,2607.8,35.46320571]
[1752009255964,4.48062,2607.9,2607.8,34.21668915]
[1752009256164,4.48062,2607.9,2607.8,30.47716579]
[1752009257158,4.48062,2607.9,2607.8,31.24397579]
[1752009257766,4.48062,2607.9,2607.8,30.47716579]
[1752009257967,4.48062,2607.9,2607.8,27.11159477]
[1752009258269,4.48062,2607.9,2607.8,27.87840477]
[1752009258467,4.48062,2607.9,2607.8,27.11159477]
[1752009259067,4.48062,2607.9,2607.8,24.63748452]
[1752009259767,5.85974763,2607.9,2607.8,28.09409259]
[1752009260066,5.39949861,2607.9,2607.8,26.81881]
[1752009260267,4.00999861,2607.9,2607.8,26.39813934]
[1752009260760,4.00999861,2607.9,2607.8,25.72573934]
[1752009260966,2.80850763,2607.9,2607.8,26.49254934]
[1752009261168,2.80850763,2607.9,2607.8,27.16494934]
[1752009261568,2.80850763,2607.9,2607.8,26.49254934]
[1752009261969,2.80850763,2607.9,2607.8,22.75308651]
[1752009262170,2.80850763,2607.9,2607.8,0.76681]
[1752009262565,2.80850763,2607.9,2607.8,2.12871]
[1752009262764,2.80850763,2607.9,2607.8,1.3619]
[1752009262970,3.78770763,2607.9,2607.8,1.3619]
[1752009263873,3.78770763,2607.9,2607.8,2.12871]
[1752009264975,3.78770763,2607.9,2607.8,0.38364488]
[1752009265174,3.78770763,2607.9,2607.8,0.76681]
[1752009265472,3.78770763,2607.9,2607.8,1.31011]
[1752009266570,3.78770763,2607.9,2607.8,0.5433]
[1752009267573,2.80850763,2607.9,2607.8,4.51791]
[1752009267782,3.78770763,2607.9,2607.8,1.31011]
[1752009268173,3.78770763,2607.9,2607.8,4.51791]
[1752009268672,1.37912763,2607.9,2607.8,4.51791]
[1752009268975,2.89596,2608.2,2607.9,0.76676]
[1752009269179,1.42528,2608.0,2607.9,1.99866]
[1752009269373,2.8255898,2608.0,2607.9,1.45536]
[1752009269577,2.8255898,2608.0,2607.9,1.99866]
[1752009270778,3.8047898,2608.0,2607.9,1.99866]
[1752009270977,2.8255898,2608.0,2607.9,1.99866]
[1752009273482,3.8047898,2608.0,2607.9,1.99866]
[1752009273981,2.8255898,2608.0,2607.9,1.99866]
[1752009274881,2.1670898,2608.0,2607.9,1.99866]
[1752009275082,2.8255898,2608.0,2607.9,1.99866]
[1752009276681,3.8047898,2608.0,2607.9,1.99866]
[1752009277284,2.1670898,2608.0,2607.9,1.99866]
[1752009277484,2.0588098,2608.0,2607.9,1.99866]
[1752009278286,2.8255698,2608.0,2607.9,1.99866]
[1752009278680,2.0588098,2608.0,2607.9,1.99866]
[1752009278881,0.6585,2608.0,2607.9,1.99866]
[1752009279786,0.76674,2608.1,2608.0,0.76676]
[1752009279984,2.82457449,2608.1,2608.0,0.76676]
[1752009280184,2.82457449,2608.1,2608.0,1.31006]
[1752009282684,2.05783449,2608.1,2608.0,1.31006]
[1752009282887,2.82456449,2608.1,2608.0,1.31006]
[1752009283482,2.05783449,2608.1,2608.0,1.31006]
[1752009285589,2.82456449,2608.1,2608.0,1.31006]
[1752009285788,2.05783449,2608.1,2608.0,1.31006]
[1752009289890,2.82456449,2608.1,2608.0,1.31006]
[1752009290094,4.85776338,2608.1,2608.0,0.76676]
[1752009290593,4.85776338,2608.1,2608.0,1.30916]
[1752009299701,3.80376449,2608.1,2608.0,1.30916]
[1752009300404,5.05546449,2608.1,2608.0,1.30916]
[1752009301102,5.05546449,2608.1,2607.9,29.2498]
[1752009301298,3.80279449,2608.0,2607.9,29.2498]
[1752009301500,4.48579449,2608.0,2607.9,29.2498]
[1752009301699,4.48579449,2608.0,2607.9,29.7922]
[1752009302402,4.48579449,2608.0,2607.9,30.55898]
[1752009302999,5.53979338,2608.0,2607.9,29.2498]
[1752009303196,4.48579449,2608.0,2607.9,26.80878]
[1752009303703,4.48579449,2608.0,2607.9,27.35118]
[1752009303906,4.48579449,2608.0,2607.9,26.80878]
[1752009304501,4.48579449,2608.0,2607.9,27.35118]
[1752009304904,4.48579449,2608.0,2607.9,26.80878]
[1752009306398,2.76453449,2608.0,2607.9,27.35118]
[1752009306602,3.53129449,2608.0,2607.9,27.35118]
[1752009307009,2.08233449,2608.0,2607.9,30.55898]
[1752009307210,2.84909449,2608.0,2607.9,30.55898]
[1752009312614,3.80359449,2608.0,2607.9,30.55898]
[1752009314615,0.76678,2607.9,2607.8,3.45108367]
[1752009314816,6.85059101,2607.9,2607.8,26.03]
[1752009315918,5.79659212,2607.9,2607.8,26.03]
[1752009316115,5.02981212,2607.9,2607.6,6.65888367]
[1752009316315,1.05399889,2607.7,2607.6,26.03]
[1752009316509,4.84605101,2607.7,2607.6,26.03]
[1752009316712,0.76687,2607.6,2607.5,26.7969]
[1752009316914,3.49677,2607.6,2607.5,26.7969]
[1752009317111,5.50526889,2607.6,2607.5,26.7969]
[1752009317716,5.50526889,2607.6,2607.5,27.3395]
[1752009317917,5.50526889,2607.6,2607.5,26.7969]
[1752009318121,5.50526889,2607.6,2607.5,27.3395]
[1752009318321,5.50526889,2607.6,2607.5,26.7969]
[1752009318514,5.53260583,2607.6,2607.5,27.3395]
[1752009319115,4.14666889,2607.6,2607.5,27.3395]
[1752009320822,1.72128,2608.0,2607.9,0.76678]
[1752009321023,3.78401093,2608.0,2607.9,3.97458]
[1752009321423,3.78401093,2608.0,2607.9,0.76678]
[1752009321627,3.78401093,2608.0,2607.9,3.97458]
[1752009324427,2.39548,2608.0,2607.9,3.97458]
[1752009325526,3.67528,2608.0,2607.9,0.76678]
[1752009325920,5.06393437,2608.0,2607.9,0.76678]
[1752009326126,0.76678,2607.9,2607.8,26.7958]
[1752009326332,2.43668,2607.9,2607.8,26.7958]
[1752009327125,2.43668,2607.9,2607.8,27.3388]
[1752009328030,2.43668,2607.9,2607.8,1.3098]
[1752009329229,0.76681,2607.8,2607.6,7.34848367]
[1752009329433,1.41091,2607.8,2607.7,26.79584]
[1752009329628,3.08081,2607.8,2607.7,26.79584]
[1752009329824,0.76684,2607.7,2607.6,4.66426]
[1752009330029,3.75434934,2607.7,2607.6,29.2358]
[1752009330230,5.05134934,2607.7,2607.6,29.2358]
[1752009331336,5.05134934,2607.7,2607.6,3.2078]
[1752009332630,6.44005165,2607.7,2607.6,3.2078]
[1752009333232,0.76693,2607.4,2607.3,26.028]
[1752009333536,3.75443934,2607.4,2607.3,0.76696]
[1752009333735,0.76696,2607.3,2607.2,3.45108367]
[1752009333937,2.43686,2607.3,2607.2,26.028]
[1752009334238,3.69876,2607.3,2607.2,26.028]
[1752009334436,0.76699,2607.2,2607.1,4.21809367]
[1752009334637,3.09979,2607.2,2607.1,30.24609367]
[1752009335538,2.3328,2607.2,2607.1,30.78909367]
[1752009336534,1.6699,2607.2,2606.7,3.44487337]
[1752009336730,3.2078,2606.8,2606.6,4.21202337]
[1752009336930,3.2078,2606.8,2606.7,55.58687337]
[1752009337137,3.2078,2606.8,2606.7,52.90914]
[1752009337437,4.52540934,2606.8,2606.7,56.35391344]
[1752009337636,4.52540934,2606.8,2606.7,55.58677344]
[1752009337839,7.22661934,2606.8,2606.7,52.142]
[1752009339039,7.22661934,2606.8,2606.6,52.99115]
[1752009339338,0.76714,2606.7,2606.6,52.99115]
[1752009339533,6.45950934,2606.8,2606.6,52.99115]
[1752009339534,7.22663934,2606.8,2606.6,52.99115]
[1752009339735,0.76714,2606.7,2606.6,52.99115]
[1752009339935,0.76714,2606.7,2606.6,52.224]
[1752009340135,2.06404,2606.7,2606.6,52.99117]
[1752009340336,3.73394,2606.7,2606.6,52.99117]
[1752009340937,3.73394,2606.7,2606.6,52.224]
[1752009342038,0.76717,2606.6,2606.5,52.228]
[1752009342240,1.6699,2606.6,2606.5,52.9952]
[1752009342443,2.43707,2606.6,2606.5,52.9952]
[1752009342940,3.821779,2606.6,2606.5,52.9952]
[1752009343241,2.43707,2606.6,2606.5,0.7672]
[1752009343541,2.43707,2606.6,2606.5,1.3102]
[1752009343744,2.43707,2606.6,2606.5,0.7672]
[1752009343933,2.43707,2606.6,2606.5,1.3102]
[1752009344839,3.2078,2606.8,2606.7,0.76714]
[1752009345040,5.26806724,2606.8,2606.7,0.76714]
[1752009345241,5.26806724,2606.8,2606.7,1.31014]
[1752009345643,6.26376724,2606.8,2606.7,1.31014]
[1752009345841,6.26376724,2606.8,2606.7,0.76714]
[1752009346332,7.03088724,2606.8,2606.7,1.31014]
[1752009346538,5.64482,2606.8,2606.7,1.31014]
[1752009346842,5.64482,2606.8,2606.7,0.76714]
[1752009347941,5.64482,2606.8,2606.7,1.31014]
[1752009351542,5.64482,2606.8,2606.7,1.98364]
[1752009353046,4.64912,2606.8,2606.7,1.98364]
[1752009353446,5.59942,2606.8,2606.7,1.98364]
[1752009354144,6.91702934,2606.8,2606.7,1.98364]
[1752009355448,5.96672934,2606.8,2606.7,1.98364]
[1752009355947,3.882,2606.8,2606.7,1.98364]
[1752009356148,0.6742,2606.8,2606.7,3.33134]
[1752009357448,0.76706,2607.0,2606.9,0.76708]
[1752009357648,1.41656,2607.0,2606.9,52.98908]
[1752009358651,2.36686,2607.0,2606.9,52.98908]
[1752009358851,1.41656,2607.0,2606.9,52.98908]
[1752009361353,0.6495,2607.0,2606.9,52.98908]
[1752009362148,3.97483,2607.2,2607.1,0.76702]
[1752009362345,5.3630211,2607.2,2607.1,0.76702]
[1752009362649,6.9628211,2607.2,2607.1,0.76702]
[1752009362852,0.76702,2607.1,2607.0,1.45973]
[1752009363051,3.68442934,2607.1,2607.0,1.45973]
[1752009363651,3.68442934,2607.1,2607.0,2.00583]
[1752009366154,5.07425737,2607.1,2607.0,2.00583]
[1752009371765,4.12395737,2607.1,2607.0,2.00583]
[1752009372965,5.07425737,2607.1,2607.0,2.00583]
[1752009376768,1.38982803,2607.1,2607.0,1.45973]
[1752009376965,0.6495,2607.1,2607.0,1.31313]
[1752009377668,1.41652,2607.1,2607.0,1.31313]
[1752009378970,0.6495,2607.1,2607.0,1.31313]
[1752009379471,2.26790934,2607.3,2607.2,0.76699]
[1752009379671,4.30926473,2607.3,2607.2,0.76699]
[1752009379866,5.07624473,2607.3,2607.2,0.76699]
[1752009380066,5.07624473,2607.3,2607.2,1.42299]
[1752009380374,3.47644473,2607.3,2607.2,1.42299]
[1752009380572,5.11544473,2607.3,2607.2,1.42299]
[1752009380772,5.11544473,2607.3,2607.2,1.96619]
[1752009388673,5.11544473,2607.3,2607.2,1.31019]
[1752009389166,5.11544473,2607.3,2607.2,0.76699]
[1752009389574,0.76699,2607.2,2607.1,52.217]
[1752009389773,5.79744539,2607.2,2607.1,52.217]
[1752009392978,0.76705,2607.0,2606.9,0.76706]
[1752009393272,3.73885934,2607.0,2606.9,53.50226]
[1752009393471,3.73885934,2607.0,2606.9,52.95906]
[1752009398680,3.73885934,2607.0,2606.9,0.76706]
[1752009398882,3.73885934,2607.0,2606.9,26.85106]
[1752009399475,3.73885934,2607.0,2606.9,27.39426]
[1752009399677,3.73885934,2607.0,2606.9,26.85106]
[1752009399978,3.73885934,2607.0,2606.9,27.39426]
[1752009400879,3.73885934,2607.0,2606.9,1.31026]
[1752009401080,3.73885934,2607.0,2606.9,27.39226]
[1752009403281,2.77335934,2607.0,2606.9,27.39226]
[1752009403484,2.77335934,2607.0,2606.9,27.38826]
[1752009403683,2.77335934,2607.0,2606.9,1.31026]
[1752009403885,2.77335934,2607.0,2606.9,27.38726]
[1752009404183,3.73885934,2607.0,2606.9,27.38726]
[1752009404384,2.77335934,2607.0,2606.9,27.38726]
[1752009404880,2.51075773,2607.0,2606.9,27.38726]
[1752009405285,2.51075773,2607.0,2606.9,27.38626]
[1752009406091,3.47625773,2607.0,2606.9,27.38326]
[1752009408891,1.82205773,2607.0,2606.9,26.84006]
[1752009410987,3.45255773,2607.0,2606.9,27.38596]
[1752009411385,3.45255773,2607.0,2606.9,30.28483344]
[1752009411680,3.45255773,2607.0,2606.9,30.83073344]
[1752009412188,2.48705773,2607.0,2606.9,30.28483344]
[1752009412379,2.48705773,2607.0,2606.9,30.83073344]
[1752009412580,2.48705773,2607.0,2606.9,30.28483344]
[1752009412780,2.48705773,2607.0,2606.9,30.83073344]
[1752009415290,3.87498121,2607.0,2606.9,4.75773344]
[1752009415492,3.87498121,2607.0,2606.9,30.81873344]
[1752009415885,3.10793121,2607.0,2606.9,30.81873344]
[1752009416279,3.87498121,2607.0,2606.9,4.75773344]
[1752009416484,3.87498121,2607.0,2606.9,30.81573344]
[1752009417389,3.87498121,2607.0,2606.9,4.75773344]
[1752009417691,3.87498121,2607.0,2606.9,30.81573344]
[1752009417988,3.87498121,2607.0,2606.9,30.81473344]
[1752009420986,3.87594183,2607.0,2606.9,30.81473344]
[1752009421190,4.83754183,2607.0,2606.9,30.81473344]
[1752009425490,3.87594183,2607.0,2606.9,30.81473344]
[1752009434304,4.83754183,2607.0,2606.9,30.81473344]
[1752009436102,4.83754183,2607.0,2606.9,4.21185344]
[1752009436302,4.83754183,2607.0,2606.9,30.26085344]
[1752009437605,4.83754183,2607.0,2606.9,26.81608]
[1752009438410,0.76708,2606.9,2606.8,4.21186344]
[1752009438596,0.76708,2606.9,2606.8,3.44477344]
[1752009438597,3.04348,2606.9,2606.8,3.44477344]
[1752009438803,6.25128,2606.9,2606.8,29.49277344]
[1752009439107,8.89255949,2606.9,2606.8,4.21188344]
[1752009439308,8.89255949,2606.9,2606.8,30.26088344]
[1752009439505,8.89255949,2606.9,2606.8,26.81611]
[1752009439908,8.89255949,2606.9,2606.8,26.049]
[1752009440511,8.89255949,2606.9,2606.8,26.81611]
[1752009440808,8.89255949,2606.9,2606.8,26.049]
[1752009441310,8.89255949,2606.9,2606.8,26.81611]
[1752009441704,8.89255949,2606.9,2606.8,26.049]
[1752009446615,0.76714,2606.7,2606.6,4.21192344]
[1752009446815,2.51074773,2606.7,2606.6,30.80452344]
[1752009447014,2.51074773,2606.7,2606.6,30.26092344]
[1752009447812,1.82214773,2606.7,2606.6,3.44477344]
[1752009448112,0.76717,2606.6,2606.5,26.81617]
[1752009448311,0.76717,2606.6,2606.5,28.05277]
[1752009449016,0.76717,2606.6,2606.5,27.2856]
[1752009449216,1.44087,2606.6,2606.5,27.2856]
[1752009450916,1.44087,2606.6,2606.5,28.0528]
[1752009451416,1.44087,2606.6,2606.5,27.5092]
[1752009451611,3.08717,2606.6,2606.5,28.0528]
[1752009451807,3.08717,2606.6,2606.5,27.5092]
[1752009452014,3.08717,2606.6,2606.5,28.0528]
[1752009452815,3.08717,2606.6,2606.5,2.0038]
[1752009453119,2.12947,2606.6,2606.5,28.0538]
[1752009454723,1.45577,2606.6,2606.5,28.0538]
[1752009460620,2.41347,2606.6,2606.5,27.2866]
[1752009462928,2.41347,2606.6,2606.5,1.2366]
[1752009463128,2.41347,2606.6,2606.5,27.2876]
[1752009467326,0.76719,2606.5,2606.4,3.44477344]
[1752009467527,4.11719773,2606.5,2606.4,26.5946]
[1752009467929,0.76722,2606.4,2606.3,3.44477344]
[1752009468234,0.76722,2606.4,2606.1,4.60977001]
[1752009468235,0.76725,2606.3,2606.2,3.44477344]
[1752009468436,2.51085773,2606.3,2606.2,3.44477344]
[1752009468732,0.76728,2606.2,2606.1,3.44477344]
[1752009468931,0.76731,2606.1,2606.0,30.12607344]
[1752009469128,1.45591,2606.1,2606.0,30.12607344]
[1752009469328,2.41361,2606.1,2606.0,30.12607344]
[1752009470334,3.46861773,2606.1,2606.0,30.12607344]
[1752009470535,3.46861773,2606.1,2606.0,30.67327344]
[1752009470736,3.46861773,2606.1,2606.0,4.07507344]
[1752009470930,3.46861773,2606.1,2606.0,30.12607344]
[1752009471125,2.70130773,2606.1,2605.9,29.49577344]
[1752009471331,0.76734,2606.0,2605.9,26.051]
[1752009471534,0.76737,2605.9,2605.8,3.44477344]
[1752009471732,7.31807773,2605.9,2605.8,29.49577344]
[1752009471935,0.7674,2605.8,2605.7,3.44477344]
[1752009472136,0.7674,2605.8,2605.7,26.052]
[1752009472332,2.3607,2605.8,2605.7,26.052]
[1752009473239,0.76743,2605.7,2605.6,3.44477344]
[1752009473433,2.45803773,2605.7,2605.6,29.49777344]
[1752009473639,3.40933773,2605.7,2605.6,26.053]
[1752009475140,0.76749,2605.5,2605.4,1.4021]
[1752009475436,1.40309,2605.5,2605.4,27.4561]
[1752009475635,1.40309,2605.5,2605.4,28.0033]
[1752009476040,2.45809773,2605.5,2605.4,1.9493]
[1752009476341,3.40939773,2605.5,2605.4,28.0053]
[1752009476641,3.40939773,2605.5,2605.4,27.2398]
[1752009477235,3.40939773,2605.5,2605.4,28.00732]
[1752009478839,2.35439,2605.5,2605.4,28.00732]
[1752009479343,2.35439,2605.5,2605.4,28.00632]
[1752009480041,0.6356,2605.5,2605.4,28.00632]
[1752009483341,1.40309,2605.5,2605.4,28.00632]
[1752009483942,1.40309,2605.5,2605.4,28.00732]
[1752009485543,1.40309,2605.5,2605.4,29.06232773]
[1752009488345,3.2078,2605.8,2605.6,0.76743]
[1752009488548,1.5869,2605.7,2605.6,1.31463]
[1752009489451,2.35437,2605.7,2605.6,0.76743]
[1752009489950,2.35437,2605.7,2605.6,1.31463]
[1752009493349,1.5869,2605.7,2605.6,1.31463]
[1752009494147,2.35433,2605.7,2605.6,1.31463]
[1752009496751,1.5869,2605.7,2605.6,1.31463]
[1752009498646,0.6356,2605.7,2605.6,1.31463]
[1752009498854,3.97515,2606.0,2605.9,0.76737]
[1752009499150,6.95184459,2606.0,2605.9,0.76737]
[1752009499746,8.00685232,2606.0,2605.9,0.76737]
[1752009500650,9.27635232,2606.0,2605.9,0.76737]
[1752009501847,6.06855232,2606.0,2605.9,0.76737]
[1752009502049,9.27635232,2606.0,2605.9,0.76737]
[1752009502249,6.07794225,2606.0,2605.9,0.76737]
[1752009502449,9.28574225,2606.0,2605.9,0.76737]
[1752009503350,6.19388452,2606.0,2605.9,1.31467]
[1752009503550,2.98608452,2606.0,2605.9,0.76737]
[1752009503855,2.98608452,2606.0,2605.9,1.31467]
[1752009504054,2.98608452,2606.0,2605.9,0.76737]
[1752009505155,2.98608452,2606.0,2605.9,1.31467]
[1752009505353,2.98608452,2606.0,2605.9,0.76737]
[1752009505550,3.75342452,2606.0,2605.9,0.76737]
[1752009505752,3.75342452,2606.0,2605.9,1.31187]
[1752009505953,3.75342452,2606.0,2605.9,0.76737]
[1752009507653,2.98608452,2606.0,2605.9,0.76737]
[1752009508451,3.75342452,2606.0,2605.9,0.76737]
[1752009510058,2.98608452,2606.0,2605.7,3.44477344]
[1752009510257,1.82240773,2605.8,2605.7,3.44477344]
[1752009510460,2.50540773,2605.8,2605.7,4.21220344]
[1752009510757,4.22620773,2605.8,2605.7,3.44477344]
[1752009511257,4.22620773,2605.8,2605.7,4.21220344]
[1752009511459,4.22620773,2605.8,2605.7,0.76743]
[1752009511658,0.76743,2605.7,2605.6,4.21221344]
[1752009511854,3.80013,2605.7,2605.6,4.21221344]
[1752009512258,3.80013,2605.7,2605.6,0.76744]
[1752009516463,0.76746,2605.6,2605.4,3.44477344]
[1752009516768,4.23276773,2605.6,2605.5,0.76749]
[1752009516975,3.2078,2605.7,2605.6,0.76746]
[1752009516976,4.26280773,2605.7,2605.6,0.76746]
[1752009517270,7.11234123,2605.7,2605.6,0.76746]
[1752009517569,0.76749,2605.6,2605.5,0.76747]
[1752009517771,2.16646167,2605.6,2605.5,0.76747]
[1752009518065,1.39897167,2605.6,2605.5,2.36977773]
[1752009518270,5.68875,2605.7,2605.6,0.76746]
[1752009518465,7.08755188,2605.7,2605.6,0.76746]
[1752009519364,5.68875,2605.7,2605.6,0.76746]
[1752009521266,5.68875,2605.7,2605.6,1.31476]
[1752009525672,2.48095,2605.7,2605.6,1.31476]
[1752009531474,0.683,2605.7,2605.6,1.31476]
[1752009539275,0.683,2605.7,2605.6,4.75953344]
[1752009539676,1.45043,2605.7,2605.6,4.75953344]
[1752009540880,2.46833,2605.7,2605.6,4.75953344]
[1752009542086,1.45043,2605.7,2605.6,4.75953344]
[1752009543076,0.683,2605.7,2605.6,4.75953344]
[1752009544583,0.6907,2605.7,2605.6,4.21223344]
[1752009544887,0.6907,2605.7,2605.6,4.75683344]
[1752009545087,0.6907,2605.7,2605.6,4.21223344]
[1752009545388,0.6907,2605.7,2605.6,4.75683344]
[1752009548091,1.45813,2605.7,2605.6,4.75683344]
[1752009548391,1.45813,2605.7,2605.6,4.21223344]
[1752009548588,1.45813,2605.7,2605.6,4.75683344]
[1752009549090,0.6907,2605.7,2605.6,4.75683344]
[1752009551185,1.7086,2605.7,2605.6,4.75683344]
[1752009551788,2.47603,2605.7,2605.6,4.75683344]
[1752009551990,1.7086,2605.7,2605.6,4.75683344]
[1752009552694,2.47603,2605.7,2605.6,4.75683344]
[1752009553392,1.7086,2605.7,2605.6,4.75683344]
[1752009554091,2.47603,2605.7,2605.6,4.75683344]
[1752009554492,3.15503,2605.7,2605.6,4.75683344]
[1752009555996,2.3876,2605.7,2605.6,4.75683344]
[1752009563204,3.15503,2605.7,2605.6,4.75683344]
[1752009563404,2.3876,2605.7,2605.6,4.75683344]
[1752009564402,3.15503,2605.7,2605.6,4.75683344]
[1752009565905,4.5550983,2605.7,2605.6,4.75683344]
[1752009568408,4.5550983,2605.7,2605.6,1.31206]
[1752009569703,4.5550983,2605.7,2605.6,0.5446]
[1752009570011,4.5550983,2605.7,2605.6,1.31206]
[1752009570808,4.5550983,2605.7,2605.6,4.75683344]
[1752009571609,4.55501083,2605.7,2605.6,4.75683344]
[1752009572409,4.55501083,2605.7,2605.6,1.31206]
[1752009572811,4.55501083,2605.7,2605.6,0.5446]
[1752009573008,4.55501083,2605.7,2605.6,1.31206]
[1752009577917,4.55501083,2605.7,2605.6,0.76746]
[1752009579917,4.55501083,2605.7,2605.6,1.31206]
[1752009585922,4.55593284,2605.7,2605.6,1.31206]
[1752009592829,4.55593284,2605.7,2605.6,27.36406]
[1752009598339,4.55593284,2605.7,2605.6,1.31206]
[1752009598540,4.55593284,2605.7,2605.6,27.36306]
[1752009600641,0.76746,2605.6,2605.5,3.44477344]
[1752009600943,8.06463465,2605.6,2605.5,29.49577344]
[1752009601238,8.06463465,2605.6,2605.5,30.26326344]
[1752009601630,5.72283181,2605.6,2605.5,30.26326344]
[1752009601831,8.06645407,2605.6,2605.5,30.26326344]
[1752009602841,8.06645407,2605.6,2605.5,4.21226344]
[1752009603040,8.06645407,2605.6,2605.5,30.26226344]
[1752009606442,8.06645407,2605.6,2605.5,29.49477344]
[1752009607042,8.06645407,2605.6,2605.5,30.26226344]
[1752009607643,8.06582159,2605.6,2605.5,30.26226344]
[1752009610043,8.06582159,2605.6,2605.5,29.49477344]
[1752009610545,8.06582159,2605.6,2605.5,30.26226344]
[1752009612142,8.06582159,2605.6,2605.5,30.81006344]
[1752009612446,8.06582159,2605.6,2605.5,30.26226344]
[1752009613547,8.06582159,2605.6,2605.5,26.81749]
[1752009613747,8.06582159,2605.6,2605.5,27.36529]
[1752009613947,8.06582159,2605.6,2605.5,26.81749]
[1752009614144,8.06582159,2605.6,2605.5,27.36529]
[1752009614942,8.06582159,2605.6,2605.5,26.5978]
[1752009616349,0.76749,2605.5,2605.4,4.10917344]
[1752009616545,3.8019476,2605.5,2605.4,31.47349344]
[1752009616846,3.91701941,2605.5,2605.4,31.47349344]
[1752009617444,2.51506181,2605.5,2605.4,31.47349344]
[1752009618652,2.51506181,2605.5,2605.4,31.47249344]
[1752009620645,2.51506181,2605.5,2605.4,28.02772]
[1752009621352,3.45596181,2605.5,2605.4,1.97972]
[1752009621650,3.45596181,2605.5,2605.4,26.5958]
[1752009621852,3.45596181,2605.5,2605.4,27.36332]
[1752009625954,3.45596181,2605.5,2605.4,1.31532]
[1752009626253,3.45596181,2605.5,2605.4,27.36232]
[1752009626455,3.45596181,2605.5,2605.4,26.5948]
[1752009626652,3.45596181,2605.5,2605.4,27.36232]
[1752009626955,3.45596181,2605.5,2605.4,0.5478]
[1752009627162,0.76755,2605.3,2605.2,4.85455344]
[1752009627355,3.45892181,2605.3,2605.2,27.45678]
[1752009627566,3.45892181,2605.3,2605.2,28.00168]
[1752009628048,3.45892181,2605.3,2605.2,27.45678]
[1752009628354,3.45892181,2605.3,2605.2,1.95468]
[1752009628547,3.45892181,2605.3,2605.2,28.00168]
[1752009630657,3.45892181,2605.3,2605.2,1.95468]
[1752009630854,3.45892181,2605.3,2605.2,28.00168]
[1752009631357,3.45892181,2605.3,2605.2,27.2341]
[1752009631856,3.45892181,2605.3,2605.2,1.1871]
[1752009632059,3.45892181,2605.3,2605.2,27.2341]
[1752009633559,3.45892181,2605.3,2605.2,1.1871]
[1752009633759,3.45892181,2605.3,2605.2,27.2341]
[1752009636660,3.45892181,2605.3,2605.2,1.1871]
[1752009636862,3.45892181,2605.3,2605.2,27.2341]
[1752009638260,3.45892181,2605.3,2604.9,3.4497997]
[1752009638261,9.0987338,2605.3,2604.9,3.4497997]
[1752009638462,5.03141181,2605.0,2604.9,26.047]
[1752009638666,3.45901181,2605.0,2604.9,26.047]
[1752009638965,3.45901181,2605.0,2604.9,27.35977]
[1752009642165,3.45901181,2605.0,2604.9,26.5921]
[1752009642469,3.45901181,2605.0,2604.9,27.35977]
[1752009642969,3.45901181,2605.0,2604.9,26.5921]
[1752009643170,3.45901181,2605.0,2604.9,27.35977]
[1752009643368,3.45901181,2605.0,2604.9,26.5921]
[1752009643860,3.45901181,2605.0,2604.9,27.35977]
[1752009645168,3.45901181,2605.0,2604.9,26.5921]
[1752009645569,3.45901181,2605.0,2604.9,27.35977]
[1752009645967,3.45901181,2605.0,2604.9,1.31277]
[1752009649474,3.45901181,2605.0,2604.9,0.5451]
[1752009650076,0.7677,2604.8,2604.7,0.6744]
[1752009650275,5.69557181,2604.8,2604.7,0.6744]
[1752009650574,6.66687181,2604.8,2604.7,0.6744]
[1752009650774,0.76776,2604.6,2604.5,0.76777]
[1752009650975,1.43766,2604.6,2604.5,27.36127]
[1752009651575,2.49363181,2604.6,2604.5,27.36127]
[1752009652876,5.70143181,2604.6,2604.5,27.36127]
[1752009658686,5.70143181,2604.6,2604.5,1.31327]